fUSD/lending_fUSD_20250112
["ID","MTS","AMOUNT","RATE_DAILY","PERIOD"]
[348618036,1736677841390,-504.57404373,9.987e-05,2]
[348618038,1736677841399,-500.58643094,9.987e-05,2]
[348618040,1736677841408,-1056.65,9.987e-05,2]
[348618042,1736677841417,-502.7464735,9.987e-05,2]
[348618044,1736677841427,-3290.66,9.987e-05,2]
[348618046,1736677841437,-501.45102281,9.987e-05,2]
[348618048,1736677841446,-500.0,9.987e-05,2]
[348618050,1736677841455,-500.63445663,9.987e-05,2]
[348618052,1736677841464,-502.52878188,9.987e-05,2]
[348618054,1736677841473,-502.77622353,9.987e-05,2]
[348618056,1736677841482,-502.21613961,9.987e-05,2]
[348618058,1736677841491,-736.67,9.987e-05,2]
[348618060,1736677841500,-500.0,9.987e-05,2]
[348618062,1736677841510,-501.46284985,9.987e-05,2]
[348618064,1736677841519,-500.64434991,9.987e-05,2]
[348618066,1736677841528,-500.0,9.987e-05,2]
[348618068,1736677841536,-500.0,9.987e-05,2]
[348618070,1736677841545,-650.26,9.987e-05,2]
[348618072,1736677841555,-577.97,9.987e-05,2]
[348618074,1736677841564,-1174.73,9.987e-05,2]
[348618076,1736677841573,-776.07,9.987e-05,2]
[348618077,1736677841581,-502.02346102,9.987e-05,2]
[348618080,1736677841591,-502.29776666,9.987e-05,2]
[348618082,1736677841600,-501.52760186,9.987e-05,2]
[348618084,1736677841609,-504.17834422,9.987e-05,2]
[348618086,1736677841618,-3324.05,9.987e-05,2]
[348618087,1736677841627,-501.92957198,9.987e-05,2]
[348618089,1736677841636,-504.40494033,9.987e-05,2]
[348618092,1736677841646,-502.4506269,9.987e-05,2]
[348618094,1736677841656,-492.06437126,9.987e-05,2]
[348618095,1736677841665,-504.08857198,9.987e-05,2]
[348618097,1736677841674,-500.0,9.987e-05,2]
[348618099,1736677841683,-892.11,9.987e-05,2]
[348618101,1736677841692,-525.57310997,9.987e-05,2]
[348618103,1736677841701,-502.35362615,9.987e-05,2]
[348618105,1736677841710,-1250.29,9.987e-05,2]
[348618107,1736677841719,-709.82,9.987e-05,2]
[348618109,1736677841728,-503.06665732,9.987e-05,2]
[348618111,1736677841736,-504.70356432,9.987e-05,2]
[348618113,1736677841748,-502.80589811,9.987e-05,2]
[348618115,1736677841758,-521.49,9.987e-05,2]
[348618117,1736677841767,-581.10528626,9.987e-05,2]
[348618119,1736677841776,-664.0,9.987e-05,2]
[348618121,1736677841785,-527.53802946,9.987e-05,2]
[348618123,1736677841794,-501.55851258,9.987e-05,2]
[348618125,1736677841803,-912.24,9.987e-05,2]
[348618127,1736677841812,-501.30177198,9.987e-05,2]
[348618129,1736677841821,-502.23917388,9.987e-05,2]
[348618131,1736677841829,-502.85573076,9.987e-05,2]
[348618133,1736677841838,-501.92784468,9.987e-05,2]
[348618135,1736677841847,-501.47226856,9.987e-05,2]
[348618137,1736677841856,-500.0,9.987e-05,2]
[348618139,1736677841865,-812.8,9.987e-05,2]
[348618141,1736677841874,-1282.57,9.987e-05,2]
[348618143,1736677841883,-500.0,9.987e-05,2]
[348618145,1736677841892,-500.71437101,9.987e-05,2]
[348618147,1736677841901,-500.0,9.987e-05,2]
[348618149,1736677841910,-727.24,9.987e-05,2]
[348618151,1736677841919,-1235.64417734,9.987e-05,2]
[348618153,1736677841927,-842.27,9.988e-05,2]
[348618155,1736677841937,-791.24,9.988e-05,2]
[348618156,1736677841945,-500.0,9.988e-05,2]
[348618158,1736677841954,-500.0,9.988e-05,2]
[348618160,1736677841967,-500.0,9.988e-05,2]
[348618162,1736677841977,-617.13,9.988e-05,2]
[348618164,1736677841985,-500.0,9.988e-05,2]
[348618165,1736677841994,-500.5849203,9.988e-05,2]
[348618166,1736677842004,-583.74,9.988e-05,2]
[348618167,1736677842013,-500.0,9.988e-05,2]
[348618168,1736677842021,-505.465725,9.988e-05,2]
[348618169,1736677842030,-500.0,9.988e-05,2]
[348618170,1736677842038,-554.04611203,9.988e-05,2]
[348618171,1736677842047,-500.0,9.988e-05,2]
[348618172,1736677842056,-530.33,9.988e-05,2]
[348618173,1736677842065,-716.26,9.988e-05,2]
[348618174,1736677842074,-500.0,9.988e-05,2]
[348618175,1736677842082,-500.0,9.988e-05,2]
[348618176,1736677842091,-500.0,9.988e-05,2]
[348618177,1736677842102,-581.74904882,9.988e-05,2]
[348618178,1736677842111,-500.0,9.988e-05,2]
[348618179,1736677842120,-500.0,9.988e-05,2]
[348618180,1736677842129,-623.98,9.988e-05,2]
[348618181,1736677842138,-500.0,9.988e-05,2]
[348618182,1736677842147,-878.51,9.988e-05,2]
[348618183,1736677842156,-500.0,9.988e-05,2]
[348618184,1736677842165,-500.0,9.988e-05,2]
[348618185,1736677842174,-500.0,9.988e-05,2]
[348618186,1736677842183,-500.0,9.988e-05,2]
[348618187,1736677842191,-942.37,9.988e-05,2]
[348618188,1736677842200,-621.1,9.988e-05,2]
[348618189,1736677842214,-711.07,9.988e-05,2]
[348618190,1736677842225,-500.0,9.988e-05,2]
[348618191,1736677842234,-515.9,9.988e-05,2]
[348618192,1736677842243,-758.32,9.988e-05,2]
[348618193,1736677842253,-556.06,9.988e-05,2]
[348618194,1736677842262,-752.94,9.988e-05,2]
[348618195,1736677842271,-500.0,9.988e-05,2]
[348618196,1736677842279,-626.97,9.988e-05,2]
[348618197,1736677842288,-719.87,9.988e-05,2]
[348618198,1736677842297,-629.75,9.988e-05,2]
[348618199,1736677842306,-596.78,9.988e-05,2]
[348618200,1736677842317,-500.0,9.988e-05,2]
[348618201,1736677842326,-500.94134747,9.988e-05,2]
[348618202,1736677842336,-539.5,9.988e-05,2]
[348618203,1736677842345,-745.36,9.988e-05,2]
[348618204,1736677842354,-500.0,9.988e-05,2]
[348618205,1736677842363,-500.0,9.988e-05,2]
[348618206,1736677842372,-500.80533193,9.988e-05,2]
[348618207,1736677842381,-500.0,9.988e-05,2]
[348618208,1736677842390,-622.18,9.988e-05,2]
[348618209,1736677842399,-568.55,9.988e-05,2]
[348618210,1736677842408,-500.0,9.988e-05,2]
[348618211,1736677842417,-500.0,9.988e-05,2]
[348618212,1736677842426,-500.0,9.988e-05,2]
[348618213,1736677842435,-501.82304534,9.988e-05,2]
[348618214,1736677842445,-604.65,9.988e-05,2]
[348618215,1736677842454,-822.98,9.988e-05,2]
[348618216,1736677842463,-922.36,9.988e-05,2]
[348618217,1736677842472,-500.0,9.988e-05,2]
[348618218,1736677842481,-500.0,9.988e-05,2]
[348618219,1736677842490,-500.0,9.988e-05,2]
[348618220,1736677842499,-520.64,9.988e-05,2]
[348618221,1736677842510,-558.05,9.988e-05,2]
[348618222,1736677842519,-514.00119508,9.988e-05,2]
[348618223,1736677842528,-365.16783593,9.988e-05,2]
[348618224,1736677842537,-613.8,9.988e-05,2]
[348618225,1736677842546,-599.48,9.988e-05,2]
[348618226,1736677842555,-1061.06,9.988e-05,2]
[348618227,1736677842564,-942.92,9.988e-05,2]
[348618228,1736677842573,-503.74068128,9.988e-05,2]
[348618229,1736677842582,-1113.48,9.988e-05,2]
[348618230,1736677842591,-1022.83,9.988e-05,2]
[348618231,1736677842602,-500.0,9.988e-05,2]
[348618232,1736677842611,-500.0,9.988e-05,2]
[348618233,1736677842621,-653.5,9.988e-05,2]
[348618234,1736677842631,-500.0,9.988e-05,2]
[348618235,1736677842640,-500.0,9.988e-05,2]
[348618236,1736677842650,-506.06183152,9.988e-05,2]
[348618237,1736677842661,-500.0,9.988e-05,2]
[348618238,1736677842672,-500.0,9.988e-05,2]
[348618239,1736677842685,-500.0,9.988e-05,2]
[348618240,1736677842695,-500.0,9.988e-05,2]
[348618241,1736677842704,-500.0,9.988e-05,2]
[348618242,1736677842713,-519.8,9.988e-05,2]
[348618244,1736677842722,-500.0,9.988e-05,2]
[348618245,1736677842733,-668.54,9.988e-05,2]
[348618246,1736677842742,-519.38,9.988e-05,2]
[348618247,1736677842751,-500.0,9.988e-05,2]
[348618248,1736677842762,-545.24336095,9.988e-05,2]
[348618249,1736677842771,-500.0,9.988e-05,2]
[348618250,1736677842780,-777.59,9.988e-05,2]
[348618251,1736677842790,-1562.64,9.988e-05,2]
[348618252,1736677842800,-1235.64417734,9.989e-05,2]
[348618253,1736677842810,-200.71118932,9.989e-05,2]
[348618266,1736677842983,-500.0,9.989e-05,2]
[348618268,1736677842993,-500.0,9.989e-05,2]
[348618270,1736677843002,-500.0,9.989e-05,2]
[348618271,1736677843013,-500.0,9.989e-05,2]
[348618272,1736677843023,-500.0,9.989e-05,2]
[348618274,1736677843032,-235.54873777,9.989e-05,2]
[348618276,1736677843042,-500.0,9.989e-05,2]
[348618277,1736677843051,-501.46760306,9.989e-05,2]
[348618278,1736677843060,-502.44155878,9.989e-05,2]
[348618279,1736677843069,-605.27353796,9.989e-05,2]
[348618280,1736677843079,-500.0,9.989e-05,2]
[348618281,1736677843087,-500.0,9.989e-05,2]
[348618282,1736677843097,-500.0,9.989e-05,2]
[348618283,1736677843106,-500.0,9.989e-05,2]
[348618284,1736677843115,-500.0,9.989e-05,2]
[348618285,1736677843124,-500.0,9.989e-05,2]
[348618286,1736677843134,-500.0,9.989e-05,2]
[348618287,1736677843144,-511.37298761,9.989e-05,2]
[348618288,1736677843154,-500.0,9.989e-05,2]
[348618289,1736677843163,-355.69101654,9.989e-05,2]
[348618290,1736677843173,-569.09006441,9.989e-05,2]
[348618291,1736677843182,-507.6732099,9.989e-05,2]
[348618292,1736677843191,-500.0,9.989e-05,2]
[348618293,1736677843200,-500.0,9.989e-05,2]
[348618294,1736677843210,-500.0,9.989e-05,2]
[348618295,1736677843219,-500.0,9.989e-05,2]
[348618296,1736677843229,-506.3537954,9.989e-05,2]
[348618297,1736677843238,-500.0,9.989e-05,2]
[348618298,1736677843248,-500.0,9.989e-05,2]
[348618299,1736677843258,-500.0,9.989e-05,2]
[348618300,1736677843267,-500.0,9.989e-05,2]
[348618301,1736677843275,-500.0,9.989e-05,2]
[348618302,1736677843284,-500.0,9.989e-05,2]
[348618303,1736677843294,-500.0,9.989e-05,2]
[348618304,1736677843304,-500.0,9.989e-05,2]
[348618305,1736677843315,-504.45881345,9.989e-05,2]
[348618306,1736677843325,-500.0,9.989e-05,2]
[348618307,1736677843335,-500.0,9.989e-05,2]
[348618308,1736677843345,-307.49236273,9.989e-05,2]
[348618309,1736677843356,-431.38286408,9.989e-05,2]
[348618310,1736677843367,-500.0,9.989e-05,2]
[348618311,1736677843376,-509.71591376,9.989e-05,2]
[348618312,1736677843386,-500.0,9.989e-05,2]
[348618313,1736677843395,-500.0,9.989e-05,2]
[348618314,1736677843407,-500.0,9.989e-05,2]
[348618315,1736677843417,-500.0,9.989e-05,2]
[348618316,1736677843429,-500.0,9.989e-05,2]
[348618317,1736677843438,-500.0,9.989e-05,2]
[348618318,1736677843448,-500.0,9.989e-05,2]
[348618319,1736677843458,-500.0,9.989e-05,2]
[348618320,1736677843468,-500.0,9.989e-05,2]
[348618321,1736677843478,-511.19083398,9.989e-05,2]
[348618322,1736677843487,-500.0,9.989e-05,2]
[348618323,1736677843498,-500.0,9.989e-05,2]
[348618324,1736677843508,-500.0,9.989e-05,2]
[348618325,1736677843517,-500.0,9.989e-05,2]
[348618326,1736677843526,-500.0,9.989e-05,2]
[348618328,1736677843535,-500.0,9.989e-05,2]
[348618329,1736677843544,-500.0,9.989e-05,2]
[348618330,1736677843554,-500.0,9.989e-05,2]
[348618331,1736677843564,-500.0,9.989e-05,2]
[348618332,1736677843575,-500.0,9.989e-05,2]
[348618333,1736677843585,-500.0,9.989e-05,2]
[348618334,1736677843595,-500.0,9.989e-05,2]
[348618335,1736677843605,-500.0,9.989e-05,2]
[348618336,1736677843615,-481.13133897,9.989e-05,2]
[348618337,1736677843623,-500.0,9.989e-05,2]
[348618338,1736677843632,-500.0,9.989e-05,2]
[348618339,1736677843642,-542.09,9.989e-05,2]
[348618340,1736677843651,-500.0,9.989e-05,2]
[348618341,1736677843661,-500.0,9.989e-05,2]
[348618342,1736677843670,-500.0,9.989e-05,2]
[348618343,1736677843679,-500.0,9.989e-05,2]
[348618344,1736677843689,-500.0,9.989e-05,2]
[348618345,1736677843698,-500.0,9.989e-05,2]
[348618346,1736677843709,-548.73,9.989e-05,2]
[348618347,1736677843720,-578.28,9.989e-05,2]
[348618348,1736677843730,-513.4,9.989e-05,2]
[348618349,1736677843739,-791.61,9.989e-05,2]
[348618350,1736677843749,-500.0,9.989e-05,2]
[348618351,1736677843759,-851.48,9.989e-05,2]
[348618352,1736677843768,-500.0,9.989e-05,2]
[348618353,1736677843777,-644.58,9.989e-05,2]
[348618354,1736677843788,-603.91,9.989e-05,2]
[348618355,1736677843797,-983.11,9.989e-05,2]
[348618356,1736677843807,-508.82,9.989e-05,2]
[348618357,1736677843818,-500.0,9.989e-05,2]
[348618358,1736677843827,-652.39,9.989e-05,2]
[348618359,1736677843836,-500.0,9.989e-05,2]
[348618360,1736677843846,-500.0,9.989e-05,2]
[348618361,1736677843855,-695.72,9.989e-05,2]
[348618362,1736677843865,-1096.15,9.989e-05,2]
[348618363,1736677843875,-500.0,9.989e-05,2]
[348618364,1736677843883,-1188.05,9.989e-05,2]
[348618365,1736677843893,-500.0,9.989e-05,2]
[348618366,1736677843902,-617.18,9.989e-05,2]
[348618367,1736677843911,-500.0,9.989e-05,2]
[348618368,1736677843921,-869.66,9.989e-05,2]
[348618369,1736677843930,-500.0,9.989e-05,2]
[348618370,1736677843940,-340.48754527,9.989e-05,2]
[348618371,1736677843950,-500.0,9.989e-05,2]
[348618372,1736677843961,-1667.97,9.989e-05,2]
[348618373,1736677843972,-505.45,9.989e-05,2]
[348618374,1736677843981,-2280.88,9.989e-05,2]
[348618375,1736677843990,-1646.88,9.989e-05,2]
[348618376,1736677843999,-4123.99,9.989e-05,2]
[348618377,1736677844009,-1856.56,9.989e-05,2]
[348618378,1736677844018,-2874.83,9.989e-05,2]
[348618379,1736677844028,-1681.48,9.989e-05,2]
[348618380,1736677844037,-1853.8,9.989e-05,2]
[348618381,1736677844046,-1235.64417734,9.99e-05,2]
[348618382,1736677844056,-1235.64417734,9.991e-05,2]
[348618383,1736677844066,-1235.64417734,9.993e-05,2]
[348618384,1736677844075,-1235.64417734,9.994e-05,2]
[348618385,1736677844084,-1235.64417734,9.996e-05,2]
[348618386,1736677844093,-500.0,9.996e-05,2]
[348618387,1736677844103,-192.4016296,9.997e-05,2]
[348618388,1736677844111,-500.0,9.997e-05,2]
[348618389,1736677844120,-500.0,9.997e-05,2]
[348618390,1736677844130,-500.0,9.997e-05,2]
[348618391,1736677844139,-501.86320342,9.997e-05,2]
[348618392,1736677844148,-500.0,9.997e-05,2]
[348618393,1736677844157,-500.0,9.997e-05,2]
[348618394,1736677844167,-503.48828509,9.997e-05,2]
[348618395,1736677844176,-500.0,9.997e-05,2]
[348618396,1736677844185,-500.0,9.997e-05,2]
[348618397,1736677844194,-503.91808428,9.997e-05,2]
[348618398,1736677844203,-501.61094478,9.997e-05,2]
[348618399,1736677844212,-500.0,9.997e-05,2]
[348618400,1736677844223,-500.0,9.997e-05,2]
[348618401,1736677844232,-500.0,9.997e-05,2]
[348618402,1736677844241,-500.0,9.997e-05,2]
[348618403,1736677844250,-505.53,9.997e-05,2]
[348618404,1736677844259,-500.0,9.997e-05,2]
[348618405,1736677844268,-500.0,9.997e-05,2]
[348618406,1736677844278,-502.55194912,9.997e-05,2]
[348618407,1736677844287,-507.95389057,9.997e-05,2]
[348618408,1736677844296,-500.0,9.997e-05,2]
[348618409,1736677844306,-500.0,9.997e-05,2]
[348618410,1736677844316,-500.0,9.997e-05,2]
[348618411,1736677844325,-501.54757431,9.997e-05,2]
[348618412,1736677844334,-483.12367763,9.997e-05,2]
[348618413,1736677844344,-500.0,9.997e-05,2]
[348618414,1736677844353,-500.0,9.997e-05,2]
[348618415,1736677844362,-500.0,9.997e-05,2]
[348618416,1736677844371,-500.0,9.997e-05,2]
[348618417,1736677844380,-500.0,9.997e-05,2]
[348618418,1736677844389,-500.0,9.997e-05,2]
[348618419,1736677844398,-503.87921719,9.997e-05,2]
[348618420,1736677844407,-500.0,9.997e-05,2]
[348618421,1736677844416,-500.0,9.997e-05,2]
[348618422,1736677844425,-500.0,9.997e-05,2]
[348618423,1736677844434,-500.0,9.997e-05,2]
[348618424,1736677844443,-500.0,9.997e-05,2]
[348618425,1736677844452,-506.86,9.997e-05,2]
[348618426,1736677844461,-500.0,9.997e-05,2]
[348618427,1736677844470,-500.0,9.997e-05,2]
[348618428,1736677844480,-500.0,9.997e-05,2]
[348618429,1736677844489,-491.91538609,9.997e-05,2]
[348618430,1736677844498,-305.65650937,9.997e-05,2]
[348618431,1736677844898,-194.34349063,9.997e-05,2]
[348618432,1736677844908,-507.85810793,9.997e-05,2]
[348618433,1736677844917,-500.0,9.997e-05,2]
[348618434,1736677844926,-500.0,9.997e-05,2]
[348618435,1736677844935,-500.0,9.997e-05,2]
[348618436,1736677844944,-500.0,9.997e-05,2]
[348618437,1736677844953,-500.0,9.997e-05,2]
[348618438,1736677844967,-500.0,9.997e-05,2]
[348618439,1736677844976,-129.90022373,9.997e-05,2]
[348618440,1736677844988,-268.28055403,9.997e-05,2]
[348618441,1736677845014,-101.81922224,9.997e-05,2]
[348618442,1736677845023,-500.0,9.997e-05,2]
[348618443,1736677845032,-222.58268488,9.997e-05,2]
[348618444,1736677845044,-277.41731512,9.997e-05,2]
[348618445,1736677845054,-158.96400904,9.997e-05,2]
[348618446,1736677845065,-341.03599096,9.997e-05,2]
[348618447,1736677845074,-189.5656034,9.997e-05,2]
[348618448,1736677845083,-494.43758482,9.997e-05,2]
[348618449,1736677845092,-500.0,9.997e-05,2]
[348618450,1736677845101,-504.57216226,9.997e-05,2]
[348618451,1736677845110,-500.0,9.997e-05,2]
[348618452,1736677845119,-94.41023731,9.997e-05,2]
[348618453,1736677845132,-406.9883155,9.997e-05,2]
[348618454,1736677845141,-500.0,9.997e-05,2]
[348618455,1736677845150,-500.0,9.997e-05,2]
[348618456,1736677845159,-500.95484098,9.997e-05,2]
[348618457,1736677845168,-504.85364883,9.997e-05,2]
[348618458,1736677845178,-500.0,9.997e-05,2]
[348618459,1736677845187,-503.50316091,9.997e-05,2]
[348618460,1736677845195,-500.0,9.997e-05,2]
[348618461,1736677845205,-500.0,9.997e-05,2]
[348618462,1736677845213,-500.0,9.997e-05,2]
[348618463,1736677845222,-502.41708438,9.997e-05,2]
[348618464,1736677845231,-504.07445071,9.997e-05,2]
[348618465,1736677845240,-500.0,9.997e-05,2]
[348618466,1736677845249,-504.2779971,9.997e-05,2]
[348618467,1736677845259,-500.0,9.997e-05,2]
[348618468,1736677845268,-504.69632745,9.997e-05,2]
[348618469,1736677845278,-500.0,9.997e-05,2]
[348618470,1736677845287,-500.0,9.997e-05,2]
[348618471,1736677845296,-500.0,9.997e-05,2]
[348618472,1736677845305,-500.0,9.997e-05,2]
[348618473,1736677845315,-504.39191313,9.997e-05,2]
[348618474,1736677845326,-500.0,9.997e-05,2]
[348618475,1736677845335,-500.0,9.997e-05,2]
[348618476,1736677845344,-76.0025956,9.997e-05,2]
[348618479,1736677845936,-492.37653948,9.987e-05,2]
[348618480,1736677845979,-11.2140084,9.987e-05,2]
[348618481,1736677845989,-448.1774044,9.997e-05,2]
[348618482,1736677845998,-263.4085872,9.997e-05,2]
[348618483,1736677846010,-236.5914128,9.997e-05,2]
[348618484,1736677846019,-226.9385014,9.997e-05,2]
[348618485,1736677846031,-273.0614986,9.997e-05,2]
[348618486,1736677846040,-500.0,9.997e-05,2]
[348618487,1736677846049,-503.92694844,9.997e-05,2]
[348618488,1736677846058,-507.11646114,9.997e-05,2]
[348618489,1736677846068,-500.0,9.997e-05,2]
[348618490,1736677846077,-500.0,9.997e-05,2]
[348618491,1736677846086,-502.56332244,9.997e-05,2]
[348618492,1736677846095,-500.0,9.997e-05,2]
[348618493,1736677846104,-500.0,9.997e-05,2]
[348618494,1736677846113,-500.0,9.997e-05,2]
[348618495,1736677846122,-500.0,9.997e-05,2]
[348618496,1736677846131,-501.6208986,9.997e-05,2]
[348618497,1736677846140,-503.3699436,9.997e-05,2]
[348618498,1736677846149,-500.0,9.997e-05,2]
[348618499,1736677846159,-500.0,9.997e-05,2]
[348618500,1736677846167,-500.0,9.997e-05,2]
[348618501,1736677846177,-500.0,9.997e-05,2]
[348618502,1736677846186,-500.0,9.997e-05,2]
[348618503,1736677846195,-500.63908995,9.997e-05,2]
[348618504,1736677846204,-500.0,9.997e-05,2]
[348618505,1736677846213,-502.46608201,9.997e-05,2]
[348618506,1736677846222,-501.49912493,9.997e-05,2]
[348618507,1736677846231,-500.0,9.997e-05,2]
[348618508,1736677846240,-502.43058367,9.997e-05,2]
[348618509,1736677846248,-500.0,9.997e-05,2]
[348618510,1736677846257,-500.62806783,9.997e-05,2]
[348618511,1736677846266,-500.0,9.997e-05,2]
[348618512,1736677846275,-500.65118783,9.997e-05,2]
[348618513,1736677846284,-500.0,9.997e-05,2]
[348618514,1736677846293,-500.0,9.997e-05,2]
[348618515,1736677846302,-500.0,9.997e-05,2]
[348618516,1736677846311,-501.32084384,9.997e-05,2]
[348618517,1736677846322,-600.66368993,9.997e-05,2]
[348618518,1736677846332,-500.0,9.997e-05,2]
[348618519,1736677846341,-500.0,9.997e-05,2]
[348618520,1736677846350,-500.0,9.997e-05,2]
[348618521,1736677846359,-500.0,9.997e-05,2]
[348618522,1736677846368,-501.25632835,9.997e-05,2]
[348618523,1736677846377,-500.0,9.997e-05,2]
[348618524,1736677846386,-1429.09,9.997e-05,2]
[348618525,1736677846395,-501.97539038,9.997e-05,2]
[348618526,1736677846404,-502.64415628,9.997e-05,2]
[348618528,1736677846413,-500.0,9.997e-05,2]
[348618529,1736677846422,-512.73219529,9.997e-05,2]
[348618530,1736677846431,-500.0,9.997e-05,2]
[348618531,1736677846440,-500.0,9.997e-05,2]
[348618532,1736677846449,-500.0,9.997e-05,2]
[348618533,1736677846458,-503.2309433,9.997e-05,2]
[348618534,1736677846467,-501.81574189,9.997e-05,2]
[348618535,1736677846476,-500.0,9.997e-05,2]
[348618536,1736677846486,-500.0,9.997e-05,2]
[348618538,1736677846494,-500.54455399,9.997e-05,2]
[348618540,1736677846503,-500.0,9.997e-05,2]
[348618542,1736677846513,-501.03107761,9.997e-05,2]
[348618543,1736677846522,-500.0,9.997e-05,2]
[348618544,1736677846532,-500.0,9.997e-05,2]
[348618545,1736677846542,-500.5231774,9.997e-05,2]
[348618546,1736677846553,-539.31365435,9.997e-05,2]
[348618547,1736677846562,-621.44,9.997e-05,2]
[348618548,1736677846571,-193.78877496,9.997e-05,2]
[348618549,1736677846590,-306.21122504,9.997e-05,2]
[348618550,1736677846599,-501.94860882,9.997e-05,2]
[348618551,1736677846608,-506.02834648,9.997e-05,2]
[348618552,1736677846617,-502.53096171,9.997e-05,2]
[348618553,1736677846626,-508.34813208,9.997e-05,2]
[348618554,1736677846635,-500.0,9.997e-05,2]
[348618555,1736677846645,-500.0,9.997e-05,2]
[348618556,1736677846654,-500.0,9.997e-05,2]
[348618557,1736677846663,-224.39879991,9.997e-05,2]
[348618558,1736677846672,-520.25,9.997e-05,2]
[348618559,1736677846682,-502.00434583,9.997e-05,2]
[348618560,1736677846691,-508.11075458,9.997e-05,2]
[348618561,1736677846701,-500.0,9.997e-05,2]
[348618562,1736677846711,-37.51382555,9.997e-05,2]
[348618563,1736677846722,-462.48617445,9.997e-05,2]
[348618564,1736677846731,-64.88389277,9.997e-05,2]
[348618565,1736677846776,-435.11610723,9.997e-05,2]
[348618566,1736677846785,-353.18735329,9.997e-05,2]
[348618567,1736677847375,-317.76000072,9.987e-05,2]
[348618568,1736677847511,-182.23999928,9.987e-05,2]
[348618569,1736677847520,-500.0,9.988e-05,2]
[348618570,1736677847530,-150.05438718,9.997e-05,2]
[348618571,1736677847540,-500.0,9.997e-05,2]
[348618572,1736677847551,-500.0,9.997e-05,2]
[348618573,1736677847561,-505.45144453,9.997e-05,2]
[348618574,1736677847571,-503.18843758,9.997e-05,2]
[348618575,1736677847581,-500.0,9.997e-05,2]
[348618576,1736677847590,-597.93558114,9.997e-05,2]
[348618577,1736677847599,-502.76609654,9.997e-05,2]
[348618578,1736677847609,-503.04256132,9.997e-05,2]
[348618579,1736677847619,-504.96729383,9.997e-05,2]
[348618580,1736677847630,-500.0,9.997e-05,2]
[348618581,1736677847639,-502.51292055,9.997e-05,2]
[348618582,1736677847649,-504.14526969,9.997e-05,2]
[348618583,1736677847660,-500.0,9.997e-05,2]
[348618584,1736677847669,-500.0,9.997e-05,2]
[348618585,1736677847679,-504.8117824,9.997e-05,2]
[348618586,1736677847688,-500.0,9.997e-05,2]
[348618587,1736677847698,-500.0,9.997e-05,2]
[348618588,1736677847707,-506.8016862,9.997e-05,2]
[348618589,1736677847716,-503.11007584,9.997e-05,2]
[348618590,1736677847726,-500.0,9.997e-05,2]
[348618591,1736677847735,-500.0,9.997e-05,2]
[348618592,1736677847744,-500.0,9.997e-05,2]
[348618593,1736677847753,-500.0,9.997e-05,2]
[348618594,1736677847763,-504.44362602,9.997e-05,2]
[348618595,1736677847772,-500.0,9.997e-05,2]
[348618596,1736677847782,-500.0,9.997e-05,2]
[348618597,1736677847791,-500.0,9.997e-05,2]
[348618598,1736677847801,-501.91832219,9.997e-05,2]
[348618599,1736677847811,-507.26069321,9.997e-05,2]
[348618600,1736677847822,-501.58436972,9.997e-05,2]
[348618601,1736677847831,-506.35810132,9.997e-05,2]
[348618602,1736677847840,-500.0,9.997e-05,2]
[348618603,1736677847850,-500.0,9.997e-05,2]
[348618604,1736677847860,-500.0,9.997e-05,2]
[348618605,1736677847869,-506.29475997,9.997e-05,2]
[348618606,1736677847879,-500.0,9.997e-05,2]
[348618607,1736677847888,-504.02578177,9.997e-05,2]
[348618608,1736677847897,-500.0,9.997e-05,2]
[348618609,1736677847906,-500.0,9.997e-05,2]
[348618610,1736677847915,-504.43094216,9.997e-05,2]
[348618611,1736677847926,-504.24976588,9.997e-05,2]
[348618612,1736677847936,-500.0,9.997e-05,2]
[348618613,1736677847945,-500.0,9.997e-05,2]
[348618614,1736677847954,-500.0,9.997e-05,2]
[348618615,1736677847967,-500.0,9.997e-05,2]
[348618616,1736677847977,-500.0,9.997e-05,2]
[348618617,1736677847986,-507.91395764,9.997e-05,2]
[348618618,1736677847995,-500.0,9.997e-05,2]
[348618619,1736677848007,-500.0,9.997e-05,2]
[348618620,1736677848017,-508.19399378,9.997e-05,2]
[348618621,1736677848027,-510.72603345,9.997e-05,2]
[348618622,1736677848036,-500.0,9.997e-05,2]